Cogmind - Beta 11.1 @@@ ROGUE MODE // 2022.05.13 @ 18:54:05 Player: LU-1G1 Result: Destroyed by as-90066 with Assembled Maul Performance ------------- Evolutions (0) 0 Regions Visited (4) 800 Robots Destroyed (19) 95 Value Destroyed (369) 369 Prototype IDs (24) 480 Alien Tech Used (0) 0 Bonus (371) 371 TOTAL SCORE: 2115 Bonus ------- Follower Combat Kills 71 Aligned with FarCom 300 Cogmind --------- Core Integrity 0/250 Matter 200/300 Energy 265/265 System Corruption 0% Temperature Cool (0) Movement Treading (240) Ox1 Location -9/Mines Parts ------- > --- POWER (1) -------- Improved Ion Engine > --- PROPULSION (2) --- Light Treads Light Treads > --- UTILITY (2) ------ High-capacity Storage Unit Medium Armor Plating > --- WEAPON (2) ------- Autogun > --- INVENTORY (20) --- Ion Engine Compact Wheel Lightpack 2.0 High-capacity Matter Pod (200) High-capacity Matter Pod (200) Signal Interpreter Seismic Detector Medium Armor Plating Medium Armor Plating Medium Armor Plating Heavy Assault Rifle Heavy Assault Rifle Heavy Assault Rifle Heavy Assault Rifle Autogun Autogun Grenade Launcher Peak State ------------ > --- POWER ------------ Improved Ion Engine > --- PROPULSION ------- Light Treads Light Treads > --- UTILITY ---------- High-capacity Storage Unit Medium Armor Plating > --- WEAPON ----------- Autogun Autogun > --- INVENTORY -------- Ion Engine Light Treads Compact Wheel Lightpack 2.0 Signal Interpreter Seismic Detector Medium Armor Plating Medium Armor Plating Medium Armor Plating Heavy Assault Rifle Heavy Assault Rifle Heavy Assault Rifle Heavy Assault Rifle Autogun Autogun Grenade Launcher [Rating: 16] Favorites ----------- Power Improved Ion Engine Engine Improved Ion Engine Propulsion Light Treads Treads Light Treads Utility Medium Armor Plating Device Seismic Detector Storage Large Storage Unit Protection Medium Armor Plating Weapon Autogun Ballistic Gun Autogun Launcher Grenade Launcher Build | -11 -10 -10 -10 -9 ------- Run | Scr Mat Min Exi Min Slots Evolved . | . . . . . Power . | . . . . . Propulsion . | . . . . . Utility . | . . . . . Weapon . | . . . . . Parts Attached 21 | 10 7 . 1 3 Power 3 | 2 1 . . . Engine 3 | 2 1 . . . Core . | . . . . . Reactor . | . . . . . Propulsion 3 | 2 . . . 1 Treads 3 | 2 . . . 1 Leg . | . . . . . Wheel . | . . . . . Hover . | . . . . . Flight . | . . . . . Utility 7 | 4 2 . 1 . Device 3 | 3 . . . . Storage 3 | 1 1 . 1 . Processor . | . . . . . Hackware . | . . . . . Protection 1 | . 1 . . . Artifact . | . . . . . Weapon 8 | 2 4 . . 2 Energy Gun . | . . . . . Energy Cannon . | . . . . . Ballistic Gun 7 | 2 4 . . 1 Ballistic Cannon . | . . . . . Launcher 1 | . . . . 1 Special Weapon . | . . . . . Impact Weapon . | . . . . . Slashing Weapon . | . . . . . Piercing Weapon . | . . . . . Special Melee Weapon . | . . . . . Unidentified Prototypes 1 | . 1 . . . Parts Lost 1 | . . . . 1 Power . | . . . . . Propulsion 1 | . . . . 1 Utility . | . . . . . Weapon . | . . . . . Highest Loss Streak 1 | . . . . 1 To Critical Strikes . | . . . . . Average Slot Usage (%) 99 | . 99 100 100 98 Engine 14 | . 14 14 14 14 Treads 28 | . 28 28 28 28 Device 1 | . 5 . . . Storage 14 | . 14 14 14 14 Protection 12 | . 8 14 14 14 Ballistic Gun 27 | . 27 28 28 25 Naked Turns . | . . . . . Heaviest Build 60 | 14 40 40 60 60 Greatest Support 40 | 40 40 40 40 40 Greatest Overweight (x) 1 | . . . 1 1 Average Overweight (x) . | . . . . 1 Largest Inventory Capacity 20 | 8 15 15 20 20 Average Capacity 15 | 7 11 15 19 20 Most Carried 20 | 8 15 15 20 20 Average Carried 13 | 5 10 14 16 19 Final Capacity 20 | 8 15 15 20 20 Final Carried 20 | 6 14 15 20 19 Class Distribution -------------------- 100% | Mutant Dominant Class ---------------- Mutant | -10/Materials Mutant | -10/Mines Mutant | -10/Exiles Mutant | -9/Mines Resources | -11 -10 -10 -10 -9 ----------- Run | Scr Mat Min Exi Min Matter Collected 691 | 327 318 . 20 26 Remotely . | . . . . . Salvage Created 655 | 108 524 . . 23 Parts 45 | 11 34 . . . Haulers Intercepted 1 | . 1 . . . Recyclers Shooed . | . . . . . Parts Field Recycled . | . . . . . Retrieved Matter . | . . . . . Parts Self-Destructed . | . . . . . Prevented . | . . . . . Kills | -11 -10 -10 -10 -9 ------- Run | Scr Mat Min Exi Min Combat Hostiles Destroyed 17 | . 10 . . 7 Guns 11 | . 10 . . 1 AOE 6 | . . . . 6 Classes Destroyed 8 | 2 5 . . 1 Worker 1 | . 1 . . . Tunneler 3 | 3 . . . . Hauler 1 | . 1 . . . Recycler 2 | 1 1 . . . Watcher 2 | . 2 . . . Swarmer 3 | . 3 . . . Grunt 7 | . 7 . . . Assembled 7 | . . . . 7 Best Kill Streak 7 | 2 4 . . 7 Combat Bots Only 7 | . 4 . . 7 Max Kills in Single Turn 3 | 1 1 . . 3 Gunslinging . | . . . . . Exploded 3 | . . . . 3 Melee . | . . . . . Uniques/NPCs Destroyed . | . . . . . Combat | -11 -10 -10 -10 -9 -------- Run | Scr Mat Min Exi Min Damage Taken 918 | . 383 52 . 483 Core 273 | . 111 . . 162 Absorbed by Shields . | . . . . . Core Remaining (%) 100 | 100 . . . . Volleys Fired 62 | 10 40 . . 12 Largest 2 | 2 2 . . 2 Hottest 46 | 40 46 . . 46 Shots Fired 118 | 20 80 . . 18 Gun 114 | 20 80 . . 14 Cannon . | . . . . . Launcher 4 | . . . . 4 Special . | . . . . . Kinetic 114 | 20 80 . . 14 Thermal . | . . . . . Explosive 4 | . . . . 4 Electromagnetic . | . . . . . Robot Hit Streak 11 | 4 11 . . 4 Robot Miss Streak 2 | 1 2 . . 2 Penetration Max . | . . . . . Secondary Targets 1 | . 1 . . . Max Gunslinging Chain 1 | . 1 . . . Shots Hit Robots 79 | 13 53 . . 13 Core Hits 43 | 6 22 . . 15 Critical Kills . | . . . . . Critical Parts Destroyed 2 | . 2 . . . Critical Strikes 2 | . 2 . . . Destroy 2 | . 2 . . . Melee Attacks . | . . . . . Impact . | . . . . . Slashing . | . . . . . Piercing . | . . . . . Sneak Attacks . | . . . . . Combat Hostiles . | . . . . . Follow-up Attacks . | . . . . . Damage Inflicted 1496 | 142 842 . . 512 Guns 1118 | 142 829 . . 147 Cannons . | . . . . . Explosions 350 | . . . . 350 Melee . | . . . . . Ramming 28 | . 13 . . 15 Kinetic 1118 | 142 829 . . 147 Thermal . | . . . . . Explosive 350 | . . . . 350 Electromagnetic . | . . . . . Impact . | . . . . . Slashing . | . . . . . Piercing . | . . . . . Highest Corruption . | . . . . . Average Corruption . | . . . . . Corruption Purged . | . . . . . Corruption Blocked . | . . . . . Overload Shots . | . . . . . Overflow Damage 33 | . . . . 33 Projectiles . | . . . . . Explosions 33 | . . . . 33 Melee . | . . . . . Knockbacks . | . . . . . Impact . | . . . . . Kinetic . | . . . . . Secondary . | . . . . . Self-Inflicted Damage 77 | . . . . 77 Shots 2 | . . . . 2 Rammed 7 | . 5 . . 2 Targets Rammed 7 | . 5 . . 2 Kicked . | . . . . . Crushed . | . . . . . Highest Temperature 28 | . 28 . . 28 Average Temperature 9 | . 6 . . 13 Received Heat Transfer 216 | . 156 . . 60 Siege Activations . | . . . . . Robots Corrupted . | . . . . . Combat Hostiles . | . . . . . Parts Fried . | . . . . . Impact Corruptions . | . . . . . Robots Melted . | . . . . . Combat Hostiles . | . . . . . Parts Melted . | . . . . . Heat Transferred . | . . . . . Parts Sabotaged . | . . . . . Parts Stolen . | . . . . . Parts Stripped . | . . . . . Power Chain Reactions . | . . . . . Missiles Intercepted . | . . . . . Alert | -11 -10 -10 -10 -9 ------- Run | Scr Mat Min Exi Min Peak Influence 371 | 20 371 164 . 81 Initial 76 | . 13 76 . . Average 110 | 10 195 70 . 61 Maximum Alert Level 1 | . 1 . . . Low Security (%) 85 | 100 63 100 . 100 Level 1 14 | . 36 . . . Level 2 . | . . . . . Level 3 . | . . . . . Level 4 . | . . . . . Level 5 . | . . . . . High Security . | . . . . . Max Security . | . . . . . Squads Dispatched 2 | . 2 . . . Investigation 1 | . 1 . . . Extermination . | . . . . . Reinforcement 1 | . 1 . . . Assault . | . . . . . Garrison . | . . . . . Intercept . | . . . . . Searches Triggered . | . . . . . Construction Impeded . | . . . . . Haulers Reinforced . | . . . . . Active Scanning Responses . | . . . . . Cargo Convoy Interrupts . | . . . . . Stealth | -11 -10 -10 -10 -9 --------- Run | Scr Mat Min Exi Min Distress Signals 1 | . 1 . . . Communications Jammed . | . . . . . Distress Signals . | . . . . . Times Spotted 42 | . 17 3 . 22 Peak Tracking Total 16 | . 7 3 . 16 Tactical Retreats 3 | . 2 . . 1 Traps | -11 -10 -10 -10 -9 ------- Run | Scr Mat Min Exi Min Traps Triggered 1 | . 1 . . . Indirectly . | . . . . . Trap Hack Attempts . | . . . . . Triggered . | . . . . . Disarmed . | . . . . . Reprogrammed . | . . . . . Reused . | . . . . . Traps Extracted . | . . . . . Installed . | . . . . . Triggered . | . . . . . Machines | -11 -10 -10 -10 -9 ---------- Run | Scr Mat Min Exi Min Machines Disabled 2 | . 1 . . 1 Max in Single Turn 1 | . 1 . . . Machines Sabotaged . | . . . . . Garrisons Compromised . | . . . . . Overloaded Fab Kills . | . . . . . Hacking | -11 -10 -10 -10 -9 --------- Run | Scr Mat Min Exi Min Machines Accessed 3 | . 1 . 2 . Terminals 1 | . 1 . . . Fabricators . | . . . . . Repair Stations . | . . . . . Recycling Units . | . . . . . Scanalyzers . | . . . . . Garrison Access . | . . . . . Total Hacks 6 | . 4 . 2 . Successful 4 | . 2 . 2 . Failed 2 | . 2 . . . Catastrophic . | . . . . . Database Lockouts . | . . . . . Manual 2 | . 1 . 1 . Terminals 4 | . 4 . . . Fabricators . | . . . . . Repair Stations . | . . . . . Recycling Units . | . . . . . Scanalyzers . | . . . . . Garrison Access . | . . . . . Terminal Hacks 4 | . 2 . 2 . Record 1 | . . . 1 . Robot Analysis 1 | . 1 . . . Zone Layout 1 | . 1 . . . EX-Prototype ID Bank 1 | . . . 1 . Fabricator Hacks . | . . . . . Repair Station Hacks . | . . . . . Recycling Unit Hacks . | . . . . . Scanalyzer . | . . . . . Garrison Access Hacks . | . . . . . Unauthorized Hacks . | . . . . . Terminals . | . . . . . Fabricators . | . . . . . Repair Stations . | . . . . . Recycling Units . | . . . . . Scanalyzers . | . . . . . Garrison Access . | . . . . . Data Cores Recovered . | . . . . . Used . | . . . . . Hacking Detections 1 | . 1 . . . Full Trace Events . | . . . . . Feedback Events . | . . . . . Feedback Blocked . | . . . . . Robot Schematics Acquired . | . . . . . Robots Built . | . . . . . Authchips . | . . . . . Time . | . . . . . Total Robot Build Rating . | . . . . . Part Schematics Acquired . | . . . . . Parts Built . | . . . . . Authchips . | . . . . . Time . | . . . . . Total Part Build Rating . | . . . . . Parts Repaired . | . . . . . Time . | . . . . . Parts Recycled . | . . . . . Recycled Matter . | . . . . . Retrieved Matter . | . . . . . Retrieved Components . | . . . . . Parts Scanalyzed . | . . . . . Part Schematics Acquired . | . . . . . Parts Damaged . | . . . . . Bothacking | -11 -10 -10 -10 -9 ------------ Run | Scr Mat Min Exi Min Used RIF Installer . | . . . . . Robots Hacked . | . . . . . Non-combat . | . . . . . Combat . | . . . . . Robot Hacks Applied . | . . . . . Relay Couplers Released . | . . . . . Fabnet Peak Effective % . | . . . . . Robots Rewired . | . . . . . Allies Hacked . | . . . . . Hacks Repelled . | . . . . . Allies | -11 -10 -10 -10 -9 -------- Run | Scr Mat Min Exi Min Total Allies 4 | . . 4 . . Largest Group 4 | . . 4 3 3 Highest-Rated Group 71 | . . 71 40 40 Highest-Rated Ally 31 | . . 31 16 16 Total Orders . | . . . . . Ally Attacks 28 | . . 7 . 21 Total Damage 337 | . . 76 . 261 Kills 8 | . . 3 . 5 Allies Corrupted . | . . . . . Allies Melted . | . . . . . Intel | -11 -10 -10 -10 -9 ------- Run | Scr Mat Min Exi Min Robot Analysis Total 1 | . 1 . . . Derelict Logs Recovered 2 | . . 2 . . Drone Launches . | . . . . . Drone Recoveries . | . . . . . Exploration | -11 -10 -10 -10 -9 ------------- Run | Scr Mat Min Exi Min Turns Passed 2508 | 211 657 623 821 196 Spaces Moved 1175 | 87 305 382 335 66 Core 2 | 2 . . . . Treads 1173 | 85 305 382 335 66 Legs . | . . . . . Wheels . | . . . . . Hover . | . . . . . Flight . | . . . . . Fastest Speed 50 | 50 160 160 160 240 Average Speed 181 | 157 160 160 219 240 Slowest Speed 240 | 160 160 160 240 240 Overloaded Moves . | . . . . . Propulsion Burnouts . | . . . . . Robots Hopped . | . . . . . Cave-ins Triggered . | . . . . . Exploration Rate (%) 41 | 6 35 85 69 13 Regions Visited 4 Branch Regions 3 Pre-discovered Areas 2 | . . 1 1 . Known Exits Taken . | . . . . . Unknown Exits Taken 4 | 1 1 1 1 . Scrap Searched 3 | . . 3 . . Spaces Dug . | . . . . . Terrain Destroyed 36 | . . . . 36 Melee . | . . . . . Projectile . | . . . . . AOE 36 | . . . . 36 Terrain Rammed . | . . . . . Walls Destroyed . | . . . . . Machines Disabled . | . . . . . Actions | -11 -10 -10 -10 -9 --------- Run | Scr Mat Min Exi Min Total 1441 | 141 399 394 422 85 Wait 138 | 25 16 12 83 2 Move 1171 | 86 304 381 334 66 Hop . | . . . . . Pick Up 24 | 6 14 1 3 . Fast Attach 11 | 8 3 . . . Attach 2 | 1 . . . 1 Detach 3 | 2 1 . . . Swap 8 | 1 4 . 1 2 Drop 15 | 2 12 . 1 . Fire 62 | 10 40 . . 12 Melee . | . . . . . Ram . | . . . . . Kick . | . . . . . Crush 7 | . 5 . . 2 Escape Stasis . | . . . . . Rewire . | . . . . . Trap . | . . . . . Miscellaneous . | . . . . . Route ------- -11/Scrapyard -10/Materials -10/Mines (discovered 3 exits: [*Mat x2] / *Exi) -10/Exiles (discovered 2 exits: [*Min x2]) -9/Mines History --------- Turn | Location | Event 9 | -11/Scrapyard | Discovered new exit (range 15) 212 | -11/Scrapyard | Entered Materials 314 | -10/Materials | Build established: Mutant 428 | -10/Materials | Discovered new exit (range 15) 869 | -10/Materials | Entered Mines 965 | -10/Mines | Learned location of Zion (-6) 1023 | -10/Mines | Assisted by bots powering up and referring to "LRC-V3" 1066 | -10/Mines | Received a Mining Laser from a helpful Derelict 1278 | -10/Mines | Discovered new exit (range 12) 1314 | -10/Mines | Learned Materials stockpile data 1357 | -10/Mines | Discovered new exit (range 16) 1480 | -10/Mines | Deemed a non-threat by the Exiles lab entrance 1480 | -10/Mines | Discovered new exit (range 5) 1492 | -10/Mines | Entered Exiles 1492 | -10/Exiles | Accompanied by 3 allies 1518 | -10/Exiles | Discovered new exit (range 15) 1536 | -10/Exiles | Met 8R-AWN 1555 | -10/Exiles | Met EX-HEX 1668 | -10/Exiles | Met EX-DEC 1761 | -10/Exiles | Met EX-BIN 1873 | -10/Exiles | Aligned with FarCom system 1875 | -10/Exiles | Given EX-Vault access code 1933 | -10/Exiles | Opened EX-Vault 1950 | -10/Exiles | Found Lightpack 2.0 2001 | -10/Exiles | Warned to stay clear of 0b10 Research branches 2294 | -10/Exiles | Discovered new exit (range 10) 2313 | -10/Exiles | Left Exiles lab with Lightpack 2.0 2313 | -10/Exiles | Entered Mines 2313 | -9/Mines | Accompanied by 3 allies 2425 | -9/Mines | Assembled infested the area 2464 | -9/Mines | Core integrity fell below 50% 2476 | -9/Mines | Core integrity fell below 20% 2503 | -9/Mines | Destroyed 7 combat bots 2509 | -9/Mines | Destroyed by as-90066 with Assembled Maul Last Messages --------------- 02464_ as-08950 destroyed. 02464_ as-57349 destroyed. 02466_ as-33854 destroyed. 02466_ Destroyed Asb. Hover Unit. 02467_ Lgt. Treads destroyed. 02469_ The unstable cave ceiling collapses. 02471_ Destroyed Asb. F-torch. 02471_ as-77886 destroyed. 02471_ as-48402 destroyed. 02474_ The unstable cave ceiling collapses. 02477_ Destroyed Asb. Hover Unit. 02480_ Autogun severed. 02480_ Destroyed Asb. Blade. 02482_ as-94218 destroyed. 02485_ R-06 Scavenger system corrupted by crushing effect. 02485_ R-06 Scavenger knocked back. 02486_ U-05 Engineer lays Concrete. 02490_ U-05 Engineer builds a Wall. 02495_ Slammed into T-07 Excavator. 02498_ Slammed into U-05 Engineer. Map ----- +----------------------------------------------------+ | ????????????????????????????????????????????? | | ????????????????????????????????????????????? | | ????????????????????????????????????????????? | | ????????????????????????????????????????????? | | ????????????????????????????????????????????? | | ????????????????????????????????????????????? | | ????????????????????????????????????????????? | | ????????????????????????????????????????????? | | ????????????????????????????????????????????? | | ????????????????????????????????????????????? | | ????????????????????????????????????????????? | | ????????????????????????????????????????????? | | ????????????????????????????????????????????? | | ????????????????????????????????????????????? | | ????????????????????????????????????????????? | | ????????????????????????????????????????????? | | ????????????????????????????????????????????? | | ????????????????????????????????????????????? | | ????????????????????????????????????????????? | | ??????????????????##????????????????????????? | | ??????????????????u ????????????????????????? | | ??????????????????# ????????????????????????? | | ??????????????????# ????????????????????????? | | ??????????????????# ###?????????????????????? | | ????????????????### ##????????????????????? | | ???????????????## @ #????????????????????? | | ???????????????# a #????????????????????? | | ???????????????# #????????????????????? | | ???????????????## a#????????????????????? | | ????????????????#a#### #??###???????????????? | | ????????????????# ???# #### ###?????????????? | | ????????????????# #### ###???????????? | | ????????????????# ### #???????????? | | ????????????????###### #### #???????????? | | ?????????????????????# ## [ ##???????????? | | ???????????######????# ## % #???????????? | | ????????####"""####### ### #??????????? | | ????????# # # #??????????? | | ????????# """ #### #??????????? | | ????????# [* """ #??? #?????????? | | ????????# =%= """ #??? ########### | | ????????# !% #??? # %% $ | | ????????# =% """ #???################# | | ????????# * "" #???????????????????? | | ????????# """ #???????????????????? | | ????????# #???????????????????? | | ????????#################???????????????????? | | ????????????????????????????????????????????? | | ????????????????????????????????????????????? | | | +----------------------------------------------------+ Best States ------------- Heat Dissipation 25 Energy Generation 12 Energy Capacity 265 Matter Stores 300 Matter Capacity 300 Sight Range 16 Terrain Scan Density 10 Armor Coverage 225 Evasion (%) 40 Recoil Reduction 2 Item Schematics ----------------- None Robot Schematics ------------------ None Fabricated ------------ Nothing Alien Tech Used ----------------- None Achievements -------------- None Challenges ------------ None Game ------ Seed ShrapnelAutogunNanovents Manual? 0 Play Time 00:14:31 Cumulative 507.3 hours Start 2022.05.13 @ 18:41:02 End 2022.05.13 @ 18:54:05 Sessions 1 Manual Loads 0 Difficulty Rogue Special Mode None Game No. 499 Rogue 284 Adventurer 112 Explorer 103 Win Type - Total 32 Types 23/0/6/2/0/0/0/1/0 Lore% 87 Gallery% 91 Achievement% 80 Wizard Run 0 Options --------- ASCII 0 Keyboard 1 Movement Vi Keybinds 1 Fullscreen 2 Font 18/SmallcapsGlow Map View 76x50 Tactical HUD 1 Map Filters NONE Filters NONE Steam 1 RUN: e7842db2-5fae-4d07-a8da-6cf590a848e3